bitfinex/quotes_SOLUSD_20250102
["timestamp","ask_amount","ask_price","bid_price","bid_amount"]
[1735844805579,14.00686571,207.22,207.19,30.0]
[1735844805774,14.00686571,207.21,207.19,30.0]
[1735844808399,14.00686571,207.21,207.2,1.20836134]
[1735844808795,14.00686571,207.22,207.2,1.20836134]
[1735844808993,14.00686571,207.23,207.2,1.20836134]
[1735844809781,14.00686571,207.23,207.21,1.20836134]
[1735844810285,14.00686571,207.22,207.21,1.20836134]
[1735844810805,14.00686571,207.22,207.16,30.0]
[1735844811299,14.00686571,207.22,207.19,30.0]
[1735844812013,14.00686571,207.22,207.16,30.0]
[1735844813207,14.00686571,207.22,207.21,1.2082867]
[1735844813892,14.00686571,207.22,207.16,30.0]
[1735844814105,14.00686571,207.2,207.16,30.0]
[1735844814496,14.00686571,207.18,207.16,30.0]
[1735844817194,14.00686571,207.2,207.16,30.0]
[1735844818595,60.339654,207.26,207.12,30.0]
[1735844818793,14.00686571,207.17,207.12,30.0]
[1735844819312,14.00686571,207.16,207.12,30.0]
[1735844819689,14.00686571,207.16,207.13,1.20865548]
[1735844819884,14.00686571,207.14,207.13,1.20865548]
[1735844820190,14.00686571,207.15,207.13,1.20865548]
[1735844820509,14.00686571,207.14,207.13,1.20865548]
[1735844820696,14.00686571,207.15,207.13,1.20865548]
[1735844820893,14.00686571,207.14,207.1,1.93400292]
[1735844821503,14.00686571,207.14,207.09,37.6296]
[1735844821504,14.00686571,207.14,207.11,1.20880772]
[1735844822021,14.00686571,207.17,207.12,30.0]
[1735844823222,14.00686571,207.17,207.13,1.20864383]
[1735844824007,14.00686571,207.17,207.12,30.0]
[1735844824312,14.00686571,207.16,207.12,30.0]
[1735844824510,14.00686571,207.15,207.12,30.0]
[1735844824712,12.0665,207.19,207.12,30.0]
[1735844824713,14.00686571,207.14,207.12,30.0]
[1735844826213,14.00686571,207.14,207.09,37.6296]
[1735844826518,14.00686571,207.12,207.09,30.0]
[1735844827997,14.00686571,207.11,207.09,30.0]
[1735844828200,14.00686571,207.11,207.06,30.0]
[1735844828413,14.00686571,207.09,207.06,31.9342768]
[1735844828807,14.00686571,207.09,207.07,1.20895268]
[1735844828997,14.00686571,207.1,207.07,1.20895268]
[1735844829398,14.00686571,207.1,207.08,1.20895268]
[1735844830230,14.00686571,207.1,207.06,30.0]
[1735844831432,14.00686571,207.09,207.06,30.0]
[1735844832035,14.00686571,207.08,207.03,30.0]
[1735844836253,8.97030827,207.08,207.03,30.0]
[1735844838035,8.97030827,207.05,207.03,30.0]
[1735844838849,8.97030827,207.06,207.03,30.0]
[1735844840664,8.97030827,207.05,207.03,30.0]
[1735844841660,8.97030827,207.05,207.03,30.0]
[1735844843441,8.97030827,207.06,207.03,30.0]
[1735844844359,8.97030827,207.04,207.0,30.0]
[1735844844532,8.97030827,207.03,207.0,30.0]
[1735844845035,8.97030827,207.04,207.0,30.0]
[1735844845747,8.97030827,207.03,207.0,30.0]
[1735844846051,8.97030827,207.02,207.0,30.0]
[1735844846270,8.97030827,207.01,207.0,30.0]
[1735844847775,8.97030827,207.01,206.96,30.0]
[1735844847977,8.97030827,206.99,206.96,30.0]
[1735844848350,8.97030827,207.0,206.96,30.0]
[1735844849074,8.97030827,207.01,206.96,30.0]
[1735844849246,8.97030827,207.03,206.99,30.0]
[1735844849445,12.0715,207.1,206.99,30.0]
[1735844849673,8.97030827,207.05,206.99,30.0]
[1735844850580,8.97030827,207.04,206.99,30.0]
[1735844850881,8.97030827,207.05,206.99,30.0]
[1735844851411,8.97030827,207.04,206.99,30.0]
[1735844852671,8.97030827,207.04,207.0,1.20930571]
[1735844853284,8.97030827,207.04,206.99,30.0]
[1735844854605,23.776884,207.09,206.99,30.0]
[1735844854606,8.97030827,207.03,206.99,30.0]
[1735844854807,8.97030827,207.02,206.99,30.0]
[1735844854979,8.97030827,207.03,207.0,1.20932172]
[1735844855496,8.97030827,207.03,207.01,1.20932172]
[1735844856103,8.97030827,207.03,206.99,30.0]
[1735844856678,12.0733,207.07,206.99,30.0]
[1735844856679,8.97030827,207.02,206.99,30.0]
[1735844856984,8.97030827,207.02,207.0,1.20933327]
[1735844857579,8.97030827,207.02,207.01,1.20933327]
[1735844858108,8.97030827,207.03,207.01,1.20933327]
[1735844858474,8.97030827,207.05,207.01,1.20933327]
[1735844858680,47.95283308,207.1,207.02,30.0]
[1735844858681,12.0716,207.1,207.02,30.0]
[1735844858888,8.97030827,207.08,207.02,30.0]
[1735844859485,8.97030827,207.07,207.02,30.0]
[1735844860687,8.97030827,207.06,207.02,30.0]
[1735844861387,8.97030827,207.04,207.0,1.93484504]
[1735844862186,8.97030827,207.04,207.01,1.20930982]
[1735844862826,8.97030827,207.04,206.99,30.0]
[1735844863120,8.97030827,207.05,206.99,30.0]
[1735844863331,8.97030827,207.04,206.99,30.0]
[1735844863503,47.95283308,207.1,206.99,30.0]
[1735844863504,12.0716,207.1,206.99,30.0]
[1735844863691,12.0716,207.1,207.03,30.0]
[1735844864029,8.97030827,207.1,207.03,30.0]
[1735844864322,8.97030827,207.1,207.04,1.209311]
[1735844865192,8.97030827,207.1,207.05,1.209311]
[1735844866222,8.97030827,207.1,207.03,38.97030827]
[1735844866453,8.97030827,207.1,207.06,30.0]
[1735844866635,8.97030827,207.11,207.06,30.0]
[1735844867853,8.97030827,207.11,207.07,1.20898364]
[1735844868037,8.97030827,207.1,207.07,1.20898364]
[1735844868437,8.97030827,207.1,207.08,1.20898364]
[1735844868951,8.97030827,207.1,207.06,30.0]
[1735844869249,8.97030827,207.09,207.06,30.0]
[1735844869451,12.0695,207.14,207.06,30.0]
[1735844869750,8.97030827,207.1,207.07,1.20897486]
[1735844869950,8.97030827,207.11,207.07,1.20897486]
[1735844870254,12.0674,207.17,207.09,30.0]
[1735844870425,8.97030827,207.15,207.09,30.0]
[1735844870624,8.97030827,207.15,207.1,1.20897486]
[1735844871328,8.97030827,207.15,207.09,30.0]
[1735844872544,8.97030827,207.15,207.1,1.93400241]
[1735844873319,8.97030827,207.15,207.11,1.20875954]
[1735844874150,8.97030827,207.15,207.12,1.20875954]
[1735844874448,12.0658,207.2,207.12,31.20875954]
[1735844874744,8.97030827,207.19,207.15,30.0]
[1735844874944,8.97030827,207.18,207.15,30.0]
[1735844877135,1.6452,207.23,207.15,30.0]
[1735844877453,8.97030827,207.17,207.15,30.0]
[1735844877825,8.97030827,207.16,207.12,30.0]
[1735844878338,8.97030827,207.16,207.13,1.20862102]
[1735844878748,8.97030827,207.15,207.13,1.20862102]
[1735844878929,20.0,207.19,207.12,30.0]
[1735844879129,8.97030827,207.15,207.12,30.0]
[1735844879432,8.97030827,207.14,207.12,30.0]
[1735844880832,12.0662,207.19,207.12,30.0]
[1735844881034,8.97030827,207.15,207.12,30.0]
[1735844881225,12.0662,207.19,207.12,30.0]
[1735844881226,8.97030827,207.14,207.12,30.0]
[1735844882551,8.97030827,207.14,207.09,30.0]
[1735844882739,8.97030827,207.13,207.09,30.0]
[1735844882935,13.97506213,207.19,207.09,30.0]
[1735844883132,8.97030827,207.14,207.09,30.0]
[1735844883327,8.97030827,207.13,207.09,30.0]
[1735844883651,8.97030827,207.15,207.09,30.0]
[1735844884147,8.97030827,207.13,207.09,30.0]
[1735844885065,8.97030827,207.11,207.06,30.0]
[1735844885354,12.0682,207.16,207.06,30.0]
[1735844885355,12.0682,207.16,207.07,1.2089129]
[1735844885536,8.97030827,207.11,207.07,1.2089129]
[1735844886157,8.97030827,207.11,207.06,30.0]
[1735844886454,8.97030827,207.09,207.03,37.8696]
[1735844887056,8.97030827,207.09,207.04,1.20909527]
[1735844887665,8.97030827,207.09,207.03,37.8696]
[1735844888033,8.97030827,207.07,207.03,30.0]
[1735844889127,8.97030827,207.07,207.01,1.93464858]
[1735844889328,8.97030827,207.02,206.97,30.0]
[1735844890247,8.97030827,207.03,206.98,1.20943388]
[1735844891050,8.97030827,207.03,206.97,38.97030827]
[1735844891433,8.97030827,207.03,206.97,30.0]
[1735844892357,23.902374,207.06,206.97,38.97030827]
[1735844892546,8.97030827,207.03,207.0,30.0]
[1735844892746,8.97030827,207.04,207.0,30.0]
[1735844894354,8.97030827,207.05,207.0,30.0]
[1735844894558,8.97030827,207.06,207.0,30.0]
[1735844894753,23.776884,207.09,207.0,30.0]
[1735844894956,8.97030827,207.06,207.0,30.0]
[1735844896468,8.97030827,207.06,207.01,1.20931681]
[1735844897152,8.97030827,207.06,207.0,30.0]
[1735844898257,8.97030827,207.05,207.0,30.0]
[1735844898869,8.97030827,207.04,207.0,30.0]
[1735844899980,24.139,207.14,207.0,38.97030827]
[1735844900144,8.97030827,207.09,207.03,38.97030827]
[1735844900349,8.97030827,207.1,207.03,38.97030827]
[1735844900587,12.0697,207.13,207.04,8.97030827]
[1735844900872,8.97030827,207.11,207.06,30.0]
[1735844901971,20.0,207.14,207.06,38.97030827]
[1735844902146,8.97030827,207.13,207.06,38.97030827]
[1735844902472,8.97030827,207.12,207.06,30.0]
[1735844902842,23.902374,207.16,207.06,30.0]
[1735844903042,8.97030827,207.1,207.06,30.0]
[1735844903269,8.97030827,207.11,207.06,30.0]
[1735844904044,20.0,207.14,207.06,30.0]
[1735844904272,8.97030827,207.12,207.06,30.0]
[1735844904573,8.97030827,207.11,207.06,30.0]
[1735844907378,8.97030827,207.12,207.06,30.0]
[1735844907745,8.97030827,207.11,207.06,30.0]
[1735844907963,8.97030827,207.1,207.03,30.0]
[1735844908162,8.97030827,207.09,207.03,30.0]
[1735844908555,8.97030827,207.08,207.03,30.0]
[1735844908767,8.97030827,207.08,207.04,3.14345624]
[1735844909080,8.97030827,207.09,207.04,3.14345624]
[1735844909265,8.97030827,207.09,207.03,30.0]
[1735844909668,8.97030827,207.1,207.03,38.97030827]
[1735844909860,8.97030827,207.11,207.06,30.0]
[1735844910176,8.97030827,207.1,207.06,30.0]
[1735844910556,23.776884,207.14,207.06,30.0]
[1735844910757,8.97030827,207.11,207.06,30.0]
[1735844913383,8.97030827,207.1,207.06,30.0]
[1735844913897,23.776884,207.14,207.06,30.0]
[1735844914062,8.97030827,207.1,207.06,30.0]
[1735844916088,8.97030827,207.1,207.07,1.20899453]
[1735844916595,8.97030827,207.09,207.07,1.20899453]
[1735844916771,8.97030827,207.1,207.06,30.0]
[1735844917184,8.97030827,207.09,207.06,30.0]
[1735844917589,8.97030827,207.1,207.06,30.0]
[1735844918089,8.97030827,207.09,207.06,30.0]
[1735844918398,8.97030827,207.1,207.06,30.0]
[1735844920195,23.776884,207.14,207.04,1.93450779]
[1735844920196,8.97030827,207.07,207.04,1.93450779]
[1735844920601,8.97030827,207.07,207.05,1.20907972]
[1735844920768,8.97030827,207.06,207.05,1.20907972]
[1735844920968,8.97030827,207.07,207.05,1.20907972]
[1735844921618,8.97030827,207.09,207.03,30.0]
[1735844922306,8.97030827,207.09,207.04,1.20910252]
[1735844922626,8.97030827,207.1,207.06,30.0]
[1735844923616,8.97030827,207.12,207.06,30.0]
[1735844924418,8.97030827,207.12,207.07,3.14327237]
[1735844924914,8.97030827,207.12,207.08,1.20895091]
[1735844925679,8.97030827,207.11,207.09,1.20895091]
[1735844926429,8.97030827,207.1,207.07,1.9342867]
[1735844927029,8.97030827,207.1,207.08,1.20897463]
[1735844927533,8.97030827,207.1,207.06,30.0]
[1735844928205,8.97030827,207.1,207.07,1.20899011]
[1735844929234,42.49793308,207.2,207.06,30.0]
[1735844929235,12.0639,207.23,207.13,30.0]
[1735844929402,8.97030827,207.2,207.13,30.0]
[1735844929901,8.97030827,207.18,207.13,30.0]
[1735844930144,8.97030827,207.18,207.16,30.0]
[1735844930346,8.97030827,207.19,207.16,30.0]
[1735844930637,8.97030827,207.18,207.14,1.20867195]
[1735844931134,8.97030827,207.18,207.13,30.0]
[1735844934446,8.97030827,207.19,207.13,30.0]
[1735844935129,8.97030827,207.2,207.17,30.0]
[1735844935453,8.97030827,207.21,207.17,30.0]
[1735844938419,8.97030827,207.2,207.17,30.0]
[1735844938619,20.0,207.24,207.17,37.9195]
[1735844939035,8.97030827,207.19,207.17,37.9195]
[1735844939832,8.97030827,207.18,207.14,30.0]
[1735844940035,8.97030827,207.17,207.14,30.0]
[1735844940232,8.97030827,207.17,207.15,1.20845487]
[1735844940763,8.97030827,207.16,207.15,1.20845487]
[1735844940937,8.97030827,207.16,207.1,30.0]
[1735844941137,8.97030827,207.13,207.1,30.0]
[1735844941545,8.97030827,207.13,207.11,1.20869897]
[1735844942456,8.97030827,207.13,207.1,30.0]
[1735844943156,12.0662,207.19,207.1,30.0]
[1735844943157,8.97030827,207.14,207.1,30.0]
[1735844943934,8.97030827,207.13,207.11,1.20871499]
[1735844944141,8.97030827,207.12,207.11,1.20871499]
[1735844944341,8.97030827,207.13,207.11,1.20871499]
[1735844944846,8.97030827,207.14,207.11,1.20871499]
[1735844945039,8.97030827,207.13,207.11,1.20871499]
[1735844945457,8.97030827,207.13,207.1,30.0]
[1735844945832,8.97030827,207.12,207.1,30.0]
[1735844946642,20.0,207.17,207.11,1.20876037]
[1735844946838,8.97030827,207.12,207.11,1.20876037]
[1735844947458,8.97030827,207.12,207.07,30.0]
[1735844947956,8.97030827,207.1,207.07,30.0]
[1735844948361,8.97030827,207.08,207.04,30.0]
[1735844948666,8.97030827,207.07,207.04,31.93437199]
[1735844949336,8.97030827,207.07,207.05,3.1433889]
[1735844949557,8.97030827,207.06,207.05,3.1433889]
[1735844949955,8.97030827,207.06,207.05,1.20901691]
[1735844951357,8.97030827,207.08,207.05,1.20901691]
[1735844951833,8.97030827,207.08,207.01,38.97030827]
[1735844952258,8.97030827,207.07,207.01,30.0]
[1735844952470,8.97030827,207.06,207.02,3.14376985]
[1735844953367,8.97030827,207.06,207.03,1.20914225]
[1735844954167,8.97030827,207.06,207.04,1.20914225]
[1735844954365,8.97030827,207.05,207.04,1.20914225]
[1735844954560,8.97030827,207.06,207.04,1.20914225]
[1735844955066,8.97030827,207.06,207.02,1.93470717]
[1735844955754,8.97030827,207.06,207.03,1.20918734]
[1735844955949,8.97030827,207.08,207.03,1.20918734]
[1735844956371,8.97030827,207.07,207.03,1.20918734]
[1735844956667,8.97030827,207.07,207.04,1.20918734]
[1735844956967,8.97030827,207.06,207.04,1.20918734]
[1735844957170,8.97030827,207.06,207.02,1.93469489]
[1735844958067,8.97030827,207.06,207.03,1.20918009]
[1735844958569,8.97030827,207.07,207.03,1.20918009]
[1735844958971,8.97030827,207.07,207.01,30.0]
[1735844959274,8.97030827,207.06,207.01,30.0]
[1735844959465,8.97030827,207.06,207.02,1.20922462]
[1735844960187,8.97030827,207.06,207.03,1.20922462]
[1735844960674,8.97030827,207.07,207.03,1.20922462]
[1735844960858,8.97030827,207.09,207.03,10.17953289]
[1735844961058,8.97030827,207.09,207.03,1.20922462]
[1735844961262,8.97030827,207.09,207.02,8.97030827]
[1735844961876,8.97030827,207.09,207.03,1.93454875]
[1735844962072,8.97030827,207.09,207.04,30.0]
[1735844962373,8.97030827,207.1,207.04,30.0]
[1735844962551,8.97030827,207.09,207.05,1.2090915]
[1735844963175,8.97030827,207.09,207.04,30.0]
[1735844964779,8.97030827,207.09,207.05,1.20905484]
[1735844965156,8.97030827,207.1,207.08,30.0]
[1735844965549,8.97030827,207.09,207.06,1.20905484]
[1735844965749,8.97030827,207.08,207.06,1.20905484]
[1735844965971,8.97030827,207.09,207.06,1.20905484]
[1735844966172,8.97030827,207.09,207.05,30.0]
[1735844967372,8.97030827,207.08,207.05,30.0]
[1735844968372,8.97030827,207.09,207.05,30.0]
[1735844968966,8.97030827,207.08,207.05,30.0]
[1735844974885,8.97030827,207.07,207.02,30.0]
[1735844975089,8.97030827,207.06,207.02,31.93459813]
[1735844975990,8.97030827,207.06,207.03,1.20918243]
[1735844976774,8.97030827,207.06,207.02,30.0]
[1735844978092,8.97030827,207.07,207.03,1.2091985]
[1735844978792,8.97030827,207.07,207.02,30.0]
[1735844979167,8.97030827,207.1,207.03,8.97030827]
[1735844979371,8.97030827,207.1,207.05,30.0]
[1735844979675,8.97030827,207.11,207.05,30.0]
[1735844979876,8.97030827,207.1,207.05,30.0]
[1735844980393,8.97030827,207.1,207.06,1.20914259]
[1735844980894,8.97030827,207.11,207.05,30.0]
[1735844981583,8.97030827,207.12,207.05,38.97030827]
[1735844981806,8.97030827,207.15,207.09,30.0]
[1735844982966,8.97030827,207.15,207.1,1.20895492]
[1735844983186,8.97030827,207.16,207.1,1.20895492]
[1735844983389,8.97030827,207.15,207.1,1.20895492]
[1735844983570,8.97030827,207.17,207.12,30.0]
[1735844983770,8.97030827,207.16,207.12,30.0]
[1735844985405,8.97030827,207.16,207.13,1.20872293]
[1735844986102,8.97030827,207.16,207.12,30.0]
[1735844986397,8.97030827,207.18,207.12,30.0]
[1735844987089,8.97030827,207.18,207.12,38.258]
[1735844987487,8.97030827,207.18,207.13,3.1423429]
[1735844987691,8.97030827,207.19,207.13,3.1423429]
[1735844988003,8.97030827,207.19,207.15,30.0]
[1735844990304,8.97030827,207.21,207.15,30.0]
[1735844990880,8.97030827,207.2,207.15,30.0]
[1735844991807,8.97030827,207.21,207.15,30.0]
[1735844992299,12.0628,207.25,207.16,1.20851146]
[1735844992509,8.97030827,207.21,207.16,1.20851146]
[1735844992704,8.97030827,207.2,207.16,1.20851146]
[1735844993108,8.97030827,207.2,207.15,30.0]
[1735844994605,8.97030827,207.19,207.15,30.0]
[1735844995109,8.97030827,207.18,207.15,30.0]
[1735844995325,8.97030827,207.16,207.12,38.258]
[1735844997206,8.97030827,207.15,207.12,30.0]
[1735844997604,12.0655,207.21,207.12,30.0]
[1735844997794,8.97030827,207.16,207.12,30.0]
[1735844999816,8.97030827,207.17,207.12,30.0]
[1735845001719,8.97030827,207.16,207.12,30.0]
[1735845002917,8.97030827,207.17,207.12,30.0]
[1735845003421,8.97030827,207.18,207.15,30.0]
[1735845005824,8.97030827,207.17,207.15,30.0]
[1735845007718,8.97030827,207.17,207.12,30.0]
[1735845007915,8.97030827,207.14,207.12,30.0]
[1735845010828,8.97030827,207.14,207.1,1.20869453]
[1735845011127,8.97030827,207.15,207.11,1.20869453]
[1735845011816,8.97030827,207.15,207.12,1.20869453]
[1735845012116,8.97030827,207.14,207.12,1.20869453]
[1735845012624,8.97030827,207.14,207.09,30.0]
[1735845012827,8.97030827,207.15,207.09,30.0]
[1735845013327,8.97030827,207.15,207.1,1.20868576]
[1735845014127,8.97030827,207.15,207.11,1.20868576]
[1735845014505,8.97030827,207.15,207.12,1.20868576]
[1735845015324,8.97030827,207.15,207.09,30.0]
[1735845016206,8.97030827,207.15,207.1,1.20869916]
[1735845016933,8.97030827,207.15,207.11,1.20869916]
[1735845017115,8.97030827,207.13,207.11,1.20869916]
[1735845017509,8.97030827,207.13,207.12,1.20869916]
[1735845018233,8.97030827,207.13,207.06,30.0]
[1735845018534,8.97030827,207.09,207.06,30.0]
[1735845018717,8.97030827,207.1,207.06,30.0]
[1735845019026,8.97030827,207.1,207.07,3.14309416]
[1735845019729,8.97030827,207.09,207.07,3.14309416]
[1735845019935,8.97030827,207.09,207.08,1.20888237]
[1735845020125,8.97030827,207.1,207.08,1.20888237]
[1735845020636,8.97030827,207.1,207.09,1.20888237]
[1735845023408,8.97030827,207.1,207.04,1.93438233]
[1735845023608,8.97030827,207.09,207.04,1.93438233]
[1735845024230,8.97030827,207.09,207.05,3.14336841]
[1735845024938,8.97030827,207.09,207.06,3.14336841]
[1735845025340,8.97030827,207.09,207.07,1.20898608]
[1735845026057,8.97030827,207.08,207.03,30.0]
[1735845026233,12.0706,207.12,207.03,30.0]
[1735845026518,8.97030827,207.09,207.03,30.0]
[1735845026848,8.97030827,207.09,207.04,3.14333952]
[1735845027519,8.97030827,207.09,207.05,3.14333952]
[1735845028217,8.97030827,207.09,207.06,3.14333952]
[1735845029338,8.97030827,207.09,207.07,1.20897674]
[1735845029838,8.97030827,207.09,207.08,1.20897674]
[1735845031619,8.97030827,207.09,207.08,1.20897674]
[1735845033620,8.97030827,207.09,207.04,1.9345876]
[1735845033948,8.97030827,207.06,207.04,1.9345876]
[1735845034443,8.97030827,207.06,207.05,1.20911925]
[1735845034949,8.97030827,207.07,207.05,1.20911925]
[1735845035349,8.97030827,207.08,207.05,1.20911925]
[1735845035650,8.97030827,207.07,207.03,30.0]
[1735845036154,8.97030827,207.08,207.03,30.0]
[1735845036539,8.97030827,207.08,207.04,1.20913722]
[1735845036751,8.97030827,207.07,207.04,1.20913722]
[1735845036925,8.97030827,207.08,207.04,1.20913722]
[1735845037550,8.97030827,207.08,207.05,1.20913722]
[1735845038124,8.97030827,207.09,207.03,30.0]
[1735845038961,8.97030827,207.09,207.04,3.14357298]
[1735845039548,8.97030827,207.09,207.05,3.14357298]
[1735845040352,8.97030827,207.09,207.06,1.20906653]
[1735845041136,8.97030827,207.09,207.03,30.0]
[1735845041350,8.97030827,207.08,207.03,30.0]
[1735845042153,8.97030827,207.08,207.04,3.14360475]
[1735845042336,8.97030827,207.09,207.04,3.14360475]
[1735845042762,8.97030827,207.09,207.05,1.20907875]
[1735845043351,8.97030827,207.09,207.06,1.20907875]
[1735845044056,8.97030827,207.09,207.03,30.0]
[1735845044357,8.97030827,207.08,207.03,30.0]
[1735845044755,8.97030827,207.09,207.03,30.0]
[1735845044928,8.97030827,207.09,207.04,3.14360414]
[1735845045568,8.97030827,207.09,207.05,1.20907851]
[1735845046353,8.97030827,207.09,207.06,1.20907851]
[1735845046760,8.97030827,207.1,207.06,1.20907851]
[1735845047254,8.97030827,207.1,207.03,38.97030827]
[1735845047761,8.97030827,207.1,207.04,3.14356586]
[1735845048547,8.97030827,207.1,207.05,3.14356586]
[1735845049562,8.97030827,207.1,207.06,1.20906379]
[1735845050249,8.97030827,207.1,207.07,1.20906379]
[1735845050446,12.0686,207.15,207.07,1.20906379]
[1735845050664,8.97030827,207.13,207.07,1.20906379]
[1735845051160,8.97030827,207.14,207.08,3.14329176]
[1735845052266,8.97030827,207.14,207.09,1.20906379]
[1735845052664,8.97030827,207.13,207.09,1.20906379]
[1735845052876,8.97030827,207.11,207.09,1.20906379]
[1735845053183,8.97030827,207.11,207.1,1.20906379]
[1735845054364,8.97030827,207.11,207.06,30.0]
[1735845054549,8.97030827,207.12,207.06,30.0]
[1735845054735,8.97030827,207.12,207.1,1.20890641]
[1735845055336,12.0669,207.18,207.1,1.20890641]
[1735845055337,8.97030827,207.14,207.1,1.20890641]
[1735845055555,8.97030827,207.14,207.09,30.0]
[1735845056064,8.97030827,207.15,207.09,30.0]
[1735845057066,8.97030827,207.15,207.1,1.20886096]
[1735845057671,12.0669,207.18,207.1,1.20886096]
[1735845057672,8.97030827,207.16,207.1,1.20886096]
[1735845057837,8.97030827,207.16,207.1,10.17916923]
[1735845058044,12.0651,207.21,207.12,30.0]
[1735845058045,8.97030827,207.18,207.12,30.0]
[1735845058454,8.97030827,207.17,207.12,30.0]
[1735845059168,8.97030827,207.17,207.13,1.20886096]
[1735845059956,8.97030827,207.17,207.14,1.20886096]
[1735845061075,8.97030827,207.17,207.15,1.20886096]
[1735845061249,8.97030827,207.18,207.15,1.20886096]
[1735845061966,8.97030827,207.17,207.15,1.20886096]
[1735845062172,8.97030827,207.17,207.16,1.20886096]
[1735845063575,8.97030827,207.18,207.16,1.20886096]
[1735845064266,8.97030827,207.17,207.16,1.20886096]
[1735845064472,8.97030827,207.18,207.12,30.0]
[1735845065289,8.97030827,207.18,207.13,3.14231547]
[1735845065974,8.97030827,207.18,207.14,1.20858287]
[1735845066673,8.97030827,207.18,207.15,1.20858287]
[1735845066872,8.97030827,207.17,207.15,1.20858287]
[1735845067073,8.97030827,207.16,207.15,1.20858287]
[1735845067370,8.97030827,207.16,207.13,1.93374325]
[1735845067671,8.97030827,207.17,207.13,1.93374325]
[1735845068170,8.97030827,207.16,207.14,1.2085843]
[1735845068969,12.0644,207.22,207.12,30.0]
[1735845068970,8.97030827,207.18,207.12,30.0]
[1735845070184,8.97030827,207.18,207.13,1.2086098]
[1735845071183,8.97030827,207.18,207.14,1.2086098]
[1735845071567,8.97030827,207.18,207.12,30.0]
[1735845072302,8.97030827,207.18,207.13,1.20858519]
[1735845072989,8.97030827,207.18,207.12,30.0]
[1735845073487,8.97030827,207.18,207.14,1.2085849]
[1735845074188,23.902374,207.23,207.12,30.0]
[1735845074495,8.97030827,207.18,207.12,30.0]
[1735845074865,8.97030827,207.2,207.13,1.20858725]
[1735845075185,8.97030827,207.19,207.13,1.20858725]
[1735845075963,8.97030827,207.18,207.14,1.20858725]
[1735845076692,8.97030827,207.18,207.12,30.0]
[1735845077492,8.97030827,207.18,207.13,1.20855073]
[1735845078093,8.97030827,207.18,207.14,1.20855073]
[1735845078476,23.902374,207.23,207.14,1.20855073]
[1735845078477,8.97030827,207.17,207.14,1.20855073]
[1735845078675,8.97030827,207.16,207.14,1.20855073]
[1735845078886,8.97030827,207.17,207.12,30.0]
[1735845079982,8.97030827,207.17,207.13,1.20862438]
[1735845080500,8.97030827,207.17,207.12,30.0]
[1735845081496,8.97030827,207.18,207.12,30.0]
[1735845081879,8.97030827,207.18,207.13,1.208591]
[1735845082800,8.97030827,207.18,207.14,1.208591]
[1735845083584,8.97030827,207.18,207.12,30.0]
[1735845083974,8.97030827,207.17,207.12,30.0]
[1735845084487,8.97030827,207.17,207.13,1.20859011]
[1735845085009,8.97030827,207.17,207.14,1.20859011]
[1735845085804,8.97030827,207.17,207.12,30.0]
[1735845086913,8.97030827,207.18,207.13,1.20858577]
[1735845087509,8.97030827,207.18,207.14,1.20858577]
[1735845088204,8.97030827,207.18,207.12,30.0]
[1735845089015,8.97030827,207.18,207.13,3.14232188]
[1735845089199,8.97030827,207.17,207.13,3.14232188]
[1735845089611,8.97030827,207.17,207.14,1.20858534]
[1735845090113,8.97030827,207.17,207.15,1.20858534]
[1735845090815,8.97030827,207.17,207.13,1.93373562]
[1735845091421,8.97030827,207.17,207.14,1.20858534]
[1735845092127,8.97030827,207.17,207.15,1.20858534]
[1735845092926,8.97030827,207.17,207.12,30.0]
[1735845093633,8.97030827,207.15,207.13,3.14233697]
[1735845094009,8.97030827,207.14,207.13,3.14233697]
[1735845094221,8.97030827,207.14,207.1,7.9144]
[1735845094919,8.97030827,207.14,207.11,3.14274499]
[1735845095419,8.97030827,207.14,207.12,1.20874807]
[1735845095929,8.97030827,207.14,207.13,1.20874807]
[1735845096126,8.97030827,207.17,207.13,1.20874807]
[1735845096340,8.97030827,207.18,207.13,1.20874807]
[1735845097035,8.97030827,207.18,207.14,3.14250436]
[1735845097437,8.97030827,207.17,207.14,3.14250436]
[1735845098214,8.97030827,207.17,207.15,1.20874807]
[1735845098629,8.97030827,207.17,207.16,1.20874807]
[1735845102423,8.97030827,207.18,207.16,1.20874807]